bitfinex/quotes_ETHUSD_20240928
["timestamp","ask_amount","ask_price","bid_price","bid_amount"]
[1727496343525,0.7790162,2694.4,2694.3,3.71144]
[1727496343925,1.24916125,2694.4,2694.3,3.71144]
[1727496344122,1.16855331,2694.4,2694.3,3.71144]
[1727496344322,1.99755331,2694.5,2694.3,3.71144]
[1727496344563,0.08060794,2694.4,2694.3,3.71144]
[1727496344972,1.99755331,2694.5,2694.3,3.71144]
[1727496345173,1.16855331,2694.4,2694.1,4.53212]
[1727496345327,0.77907262,2694.2,2694.1,3.71181]
[1727496345534,1.16860893,2694.3,2694.1,3.71181]
[1727496345727,1.16860893,2694.2,2694.0,103.71194]
[1727496345940,1.16860893,2694.2,2694.1,3.71181]
[1727496346370,1.16860893,2694.2,2694.0,103.71193]
[1727496346531,0.77878805,2694.1,2694.0,103.71193]
[1727496347929,1.41351517,2694.1,2694.0,100.0]
[1727496348136,1.4413715,2694.1,2694.0,100.0]
[1727496348360,1.4413755,2694.1,2694.0,100.0]
[1727496349246,1.4413755,2694.1,2694.0,103.71195]
[1727496349247,1.1681058,2694.1,2694.0,103.71195]
[1727496349448,1.1681058,2694.1,2694.0,100.0]
[1727496349861,1.16772038,2694.1,2694.0,100.0]
[1727496352141,1.16748327,2694.1,2694.0,100.0]
[1727496352341,1.75915289,2694.1,2694.0,100.0]
[1727496352777,0.59166962,2694.1,2694.0,100.0]
[1727496353151,1.75915289,2694.1,2694.0,100.0]
[1727496354776,0.59166962,2694.1,2694.0,100.0]
[1727496354939,1.36967931,2694.1,2694.0,100.0]
[1727496355279,1.36967931,2694.1,2694.0,103.71195]
[1727496355488,0.77800969,2694.1,2694.0,103.71195]
[1727496356976,0.77800969,2694.2,2694.0,103.71195]
[1727496357162,0.77800969,2694.1,2694.0,105.25913413]
[1727496357363,0.07737025,2694.1,2694.0,105.25913413]
[1727496357534,0.80048022,2694.3,2694.2,3.71167]
[1727496359381,0.87889987,2694.3,2694.2,3.71167]
[1727496359945,0.87889987,2694.3,2694.1,3.71181]
[1727496360159,0.87889987,2694.3,2694.1,7.42354]
[1727496360366,0.87889987,2694.3,2694.2,3.71167]
[1727496360960,0.87889987,2694.3,2694.1,3.71172]
[1727496361168,0.10089018,2694.3,2694.2,3.71167]
[1727496361649,0.87889987,2694.3,2694.2,3.71167]
[1727496361844,0.10089018,2694.3,2694.2,3.71167]
[1727496363982,0.10089018,2694.3,2694.2,6.04525413]
[1727496364485,0.02247053,2694.3,2694.2,6.04525413]
[1727496370090,0.02247053,2694.3,2694.2,9.86153821]
[1727496371271,0.02247053,2694.3,2694.2,6.04525413]
[1727496375981,0.02247053,2694.3,2694.2,6.11948052]
[1727496380689,0.77800969,2694.9,2694.3,3.0]
[1727496380898,0.77800969,2695.1,2695.0,3.71057]
[1727496381050,0.77800969,2695.2,2695.0,5.25775413]
[1727496381399,0.77800969,2695.2,2695.1,3.71043]
[1727496381690,1.99663039,2695.6,2695.3,3.71016]
[1727496381691,0.77800969,2695.5,2695.3,3.71016]
[1727496381903,0.77800969,2695.5,2695.4,5.25720413]
[1727496382053,0.77800969,2695.6,2695.5,3.70988]
[1727496382501,0.77800969,2695.7,2695.5,3.70988]
[1727496382792,0.77800969,2695.8,2695.7,3.70961]
[1727496384084,0.77800969,2695.9,2695.7,4.47341]
[1727496384286,0.77800969,2695.9,2695.8,5.25665413]
[1727496384606,0.77800969,2696.0,2695.8,5.25665413]
[1727496384750,0.77800969,2696.0,2695.9,3.70933]
[1727496384950,0.77800969,2696.1,2696.0,3.70919]
[1727496385161,0.77800969,2696.3,2696.1,3.70904]
[1727496385597,1.55500969,2696.4,2696.1,3.70904]
[1727496385796,1.94416597,2696.4,2696.1,3.70904]
[1727496385959,1.16716597,2696.4,2696.1,3.70904]
[1727496386160,0.77800969,2696.5,2696.1,3.70904]
[1727496386564,0.07529316,2696.4,2696.1,3.70904]
[1727496386775,0.07529316,2696.4,2696.2,5.25606413]
[1727496387408,0.07529316,2696.4,2696.3,3.70878]
[1727496387578,0.7757,2696.8,2696.4,3.70859]
[1727496387761,2.61803977,2696.8,2696.4,5.25577413]
[1727496388309,0.7757,2697.0,2696.6,6.02665413]
[1727496389881,4.48327,2697.2,2696.7,3.7082]
[1727496390082,0.07670982,2697.1,2696.7,3.7082]
[1727496390419,0.97438399,2697.1,2696.7,3.7082]
[1727496390588,0.07670982,2697.1,2697.0,1.54718413]
[1727496390803,0.07670982,2697.1,2696.8,1.54718413]
[1727496390995,0.07670982,2697.1,2696.9,3.70793]
[1727496391191,0.3880354,2697.3,2696.9,3.70793]
[1727496391719,0.88369495,2697.3,2696.9,3.70793]
[1727496393683,0.07672879,2697.2,2696.9,3.70793]
[1727496393885,0.8114,2697.4,2696.9,7.41577]
[1727496394080,0.07683188,2697.3,2696.9,3.70784]
[1727496394328,0.07683188,2697.3,2697.2,1.54718413]
[1727496394822,1.24940682,2697.7,2697.1,4.46545]
[1727496394823,4.95627682,2697.7,2697.1,4.46545]
[1727496394980,0.07861009,2697.3,2697.1,4.46545]
[1727496395180,1.20491737,2697.6,2697.2,1.54718413]
[1727496395419,1.19940676,2697.7,2697.3,3.70733]
[1727496397028,1.19940676,2697.7,2696.7,3.70818]
[1727496397029,11.05621,2698.2,2697.5,0.7578]
[1727496397320,3.70646,2698.0,2697.6,1.54718413]
[1727496397486,0.38359126,2697.9,2697.6,1.54718413]
[1727496397682,0.07933271,2697.8,2697.5,0.7578]
[1727496398083,0.07933271,2697.8,2697.5,4.46487]
[1727496398331,4.48024378,2698.2,2697.6,3.70698]
[1727496398518,4.48024378,2698.2,2697.7,3.7068]
[1727496398519,0.44802438,2698.1,2697.7,3.7068]
[1727496398686,0.38800634,2698.2,2697.7,3.7068]
[1727496400184,0.38800634,2698.2,2697.8,3.7067]
[1727496400620,0.38800634,2698.2,2697.7,3.7068]
[1727496400920,0.0795221,2698.1,2697.7,3.7068]
[1727496401128,0.0795221,2698.1,2698.0,1.54718413]
[1727496401507,0.0795221,2698.1,2697.9,3.70648]
[1727496401831,3.75584006,2698.5,2697.9,3.70648]
[1727496401832,3.7059,2698.4,2697.9,3.70648]
[1727496402037,0.07969363,2698.0,2697.9,3.70648]
[1727496402244,5.22585191,2698.4,2697.9,3.70648]
[1727496402401,0.07986189,2698.0,2697.9,3.70648]
[1727496402601,5.22585191,2698.4,2697.9,3.70648]
[1727496402913,0.5275852,2698.3,2697.9,3.70648]
[1727496403116,0.60775615,2698.3,2697.9,3.70648]
[1727496405251,0.08017095,2698.3,2697.9,3.70648]
[1727496407349,0.8074,2698.2,2697.8,0.7578]
[1727496407508,0.8074,2698.2,2697.8,4.46449]
[1727496407708,0.07737017,2698.1,2697.8,4.46449]
[1727496409025,0.07737017,2698.1,2697.9,3.70656]
[1727496410234,0.07737017,2698.1,2697.7,3.70676]
[1727496410436,0.07737017,2698.1,2697.7,7.4135]
[1727496410867,0.07737017,2698.1,2697.8,3.70668]
[1727496411959,0.07737017,2698.1,2697.9,3.70657]
[1727496412131,0.07737017,2698.1,2698.0,3.70644]
[1727496412653,0.787,2698.4,2698.0,3.70644]
[1727496413254,0.07756816,2698.3,2698.0,3.70644]
[1727496415158,0.07756816,2698.3,2698.1,3.7063]
[1727496416961,0.07756816,2698.3,2697.9,3.70657]
[1727496418125,0.07756816,2698.3,2697.9,7.41306]
[1727496418737,0.07756816,2698.3,2697.9,3.70649]
[1727496419149,0.07756816,2698.3,2697.9,7.41298]
[1727496420029,0.07756816,2698.3,2697.9,3.70649]
[1727496420967,0.07756816,2698.3,2698.0,3.70637]
[1727496423471,0.07756816,2698.3,2697.9,7.41299]
[1727496423887,0.07756816,2698.3,2698.0,3.70642]
[1727496424162,0.07756816,2698.3,2698.0,3.70632]
[1727496424340,0.07756816,2698.3,2698.1,3.70631]
[1727496425080,0.07756816,2698.3,2698.0,3.70632]
[1727496426374,0.07756816,2698.3,2698.1,3.70629]
[1727496426691,0.07756816,2698.3,2698.0,3.70632]
[1727496426692,0.07756816,2698.3,2698.0,7.41269]
[1727496426894,0.07756816,2698.3,2698.0,3.70632]
[1727496427102,0.07756816,2698.3,2698.0,4.52382]
[1727496427388,0.07756816,2698.3,2698.2,3.70617]
[1727496427751,0.07756816,2698.3,2698.0,8.23018]
[1727496428149,0.07756816,2698.3,2698.0,4.52382]
[1727496428549,0.07756816,2698.3,2698.1,3.70629]
[1727496430373,0.07756816,2698.3,2698.0,4.52382]
[1727496432300,0.07756816,2698.3,2698.0,3.70632]
[1727496433558,0.85557785,2698.3,2698.0,3.70632]
[1727496433969,0.85557785,2698.3,2698.0,7.41269]
[1727496434173,0.85557785,2698.3,2698.0,3.70632]
[1727496434383,0.85557785,2698.3,2698.0,7.41268]
[1727496434581,0.77800969,2698.2,2698.0,7.41268]
[1727496434899,0.07743588,2698.1,2698.0,3.70632]
[1727496435595,0.85544557,2698.1,2698.0,3.70632]
[1727496436573,0.07743588,2698.1,2698.0,3.70632]
[1727496437091,0.85481708,2698.1,2698.0,3.70632]
[1727496437501,1.24491915,2698.1,2698.0,3.70632]
[1727496437702,0.85505816,2698.1,2698.0,3.70632]
[1727496438584,1.24491915,2698.1,2698.0,3.70632]
[1727496439609,1.63643135,2698.1,2698.0,3.70632]
[1727496439778,1.48989752,2698.1,2698.0,3.70632]
[1727496440518,1.63643135,2698.1,2698.0,3.70632]
[1727496440812,3.04889299,2698.1,2698.0,3.70632]
[1727496442582,3.43555055,2698.1,2698.0,3.70632]
[1727496444519,3.43789367,2698.1,2698.0,3.70632]
[1727496449322,3.43850503,2698.1,2698.0,3.70632]
[1727496451136,3.04877741,2698.1,2698.0,5.331219]
[1727496451346,0.07743588,2698.1,2698.0,8.331219]
[1727496452133,0.77936477,2698.5,2698.4,3.70589]
[1727496452336,1.55887989,2698.7,2698.1,3.70626]
[1727496452337,1.16910232,2698.7,2698.5,4.50956]
[1727496452663,1.16910232,2698.8,2698.7,3.70548]
[1727496453484,1.55887989,2699.0,2698.8,3.70535]
[1727496453689,1.55887989,2699.0,2698.8,5.25253413]
[1727496453690,1.16697719,2698.9,2698.8,5.25253413]
[1727496454201,1.23385547,2698.9,2698.8,5.25253413]
[1727496454784,1.23385547,2698.9,2698.8,1.54718413]
[1727496454985,2.23973152,2698.9,2698.6,3.70553]
[1727496455329,0.77772986,2698.7,2698.6,5.25271413]
[1727496455621,0.77772986,2698.9,2698.6,6.22893454]
[1727496455825,0.77772986,2698.9,2698.6,0.97622041]
[1727496456137,0.77772986,2698.9,2698.5,0.8038]
[1727496456138,0.77772986,2698.8,2698.5,6.05669413]
[1727496456445,0.77772986,2698.8,2698.5,5.25289413]
[1727496456446,0.77772986,2698.7,2698.5,5.25289413]
[1727496457004,0.77772986,2698.7,2698.5,5.25283413]
[1727496457205,0.77772986,2698.6,2698.4,3.70589]
[1727496457729,0.77772986,2698.5,2698.4,3.70589]
[1727496457926,0.84472742,2698.5,2698.3,6.05695413]
[1727496458132,0.84472742,2698.5,2698.3,9.76290413]
[1727496458317,0.84472742,2698.5,2698.3,6.05693413]
[1727496458519,0.84472742,2698.5,2698.3,9.76288413]
[1727496458835,0.06699756,2698.5,2698.3,9.76288413]
[1727496459707,0.06699756,2698.5,2698.3,1.54718413]
[1727496459910,0.06699756,2698.5,2698.1,0.8038]
[1727496459911,2.72911063,2698.4,2698.2,3.70605]
[1727496460240,0.84410002,2698.3,2698.1,3.70623]
[1727496460560,0.77742895,2698.2,2698.1,3.70623]
[1727496460903,0.0666217,2698.2,2698.1,3.70623]
[1727496461108,0.84406826,2698.2,2698.1,3.70623]
[1727496461328,0.77744656,2698.2,2698.1,3.70623]
[1727496461530,0.84406826,2698.2,2698.1,3.70623]
[1727496462446,0.84408095,2698.2,2698.1,3.70623]
[1727496462744,0.84408095,2698.2,2697.9,3.7065]
[1727496462945,0.77745925,2698.1,2697.9,3.70651]
[1727496463159,0.77745925,2698.1,2697.7,4.51055]
[1727496463442,0.84374868,2698.0,2697.7,0.8038]
[1727496463642,0.77745925,2697.9,2697.7,0.8038]
[1727496463843,0.84364565,2697.9,2697.7,0.8038]
[1727496464051,0.84364565,2697.9,2697.7,4.51057]
[1727496464255,0.84364565,2697.9,2697.8,3.70672]
[1727496464855,1.62844565,2697.9,2697.4,3.70726]
[1727496465068,0.77745925,2697.6,2697.2,3.70743]
[1727496465352,0.77745925,2697.6,2697.0,3.70781]
[1727496465353,1.57475925,2697.5,2697.0,3.70781]
[1727496465559,0.77745925,2697.3,2697.0,3.70781]
[1727496465919,0.06508994,2697.2,2697.1,3.70767]
[1727496466359,0.77745925,2697.4,2697.2,3.70751]
[1727496467016,0.77745925,2697.4,2697.0,3.70781]
[1727496467017,0.77745925,2697.4,2696.8,4.47524]
[1727496467241,0.77745925,2697.2,2696.9,3.7079]
[1727496467426,0.77745925,2697.3,2696.9,3.7079]
[1727496467666,0.77745925,2697.2,2696.9,3.7079]
[1727496468461,1.16658077,2697.4,2696.9,3.7079]
[1727496468462,0.77745925,2697.3,2696.9,3.7079]
[1727496468754,0.06488752,2697.1,2696.9,3.7079]
[1727496468962,0.77745925,2697.3,2696.8,4.47524]
[1727496469258,0.77745925,2697.3,2696.8,3.70808]
[1727496469259,0.7973,2697.1,2696.8,3.70808]
[1727496469619,0.06440551,2697.0,2696.8,3.70808]
[1727496470758,0.06440551,2697.0,2696.5,0.7672]
[1727496470759,0.11440557,2697.0,2696.5,0.7672]
[1727496471058,0.11440557,2697.0,2696.4,3.7086]
[1727496471059,5.08944624,2697.0,2696.4,3.7086]
[1727496471218,0.77745925,2696.9,2696.4,3.7086]
[1727496471416,0.06444906,2696.9,2696.4,3.7086]
[1727496471873,0.06444906,2696.9,2696.5,3.70849]
[1727496472649,5.28244925,2697.1,2696.5,3.70849]
[1727496472850,0.06445189,2696.8,2696.5,3.70849]
[1727496473022,5.28244925,2697.1,2696.5,3.70849]
[1727496473360,0.06443298,2696.7,2696.5,3.70849]
[1727496473657,0.06357473,2696.6,2696.5,4.86307283]
[1727496473860,0.756,2696.8,2696.4,3.7086]
[1727496474021,0.06311157,2696.6,2696.4,3.7086]
[1727496474221,0.756,2696.8,2696.4,4.528071]
[1727496474464,0.06300842,2696.5,2696.4,4.528071]
[1727496474663,0.756,2696.8,2696.4,4.528071]
[1727496474829,0.06338738,2696.5,2696.4,4.528071]
[1727496475029,0.756,2696.8,2696.4,4.528071]
[1727496475525,0.756,2696.8,2696.3,3.35153826]
[1727496475526,4.46412,2696.8,2696.3,3.70878]
[1727496475862,0.06328713,2696.7,2696.2,0.7772]
[1727496476576,0.06328713,2696.7,2696.2,4.48604]
[1727496476748,0.06328713,2696.7,2696.2,5.305556]
[1727496476963,0.06328713,2696.7,2696.3,3.70875]
[1727496477138,0.756,2696.6,2696.1,3.70903]
[1727496477332,0.756,2696.6,2695.9,3.70925]
[1727496477333,4.46437,2696.6,2695.9,7.41847]
[1727496477574,0.06272634,2696.5,2696.0,3.70917]
[1727496479066,0.06272634,2696.5,2695.9,4.49301883]
[1727496479067,3.77124634,2696.5,2695.9,4.49301883]
[1727496479267,3.70865,2696.4,2695.9,4.49301883]
[1727496479568,0.756,2696.3,2695.9,4.49301883]
[1727496479728,0.756,2696.3,2695.9,0.78379883]
[1727496479927,0.06229467,2696.2,2695.8,3.70946]
[1727496480532,0.756,2696.3,2695.8,3.70946]
[1727496480731,0.756,2696.3,2695.7,3.70958]
[1727496480732,0.06214026,2696.1,2695.9,3.70928]
[1727496480930,0.756,2696.3,2695.8,3.70935]
[1727496480931,0.06167358,2696.2,2695.8,3.70935]
[1727496481230,0.756,2696.3,2695.8,3.70935]
[1727496481432,0.06177355,2696.1,2695.8,3.70935]
[1727496481727,0.756,2696.3,2695.8,3.70935]
[1727496481930,0.06167035,2696.0,2695.7,3.70951]
[1727496482130,0.756,2696.3,2695.8,3.70939]
[1727496482336,0.06154348,2695.9,2695.8,3.70939]
[1727496482710,0.06166983,2695.9,2695.8,3.70939]
[1727496482870,0.756,2696.3,2695.8,3.70939]
[1727496483165,0.06166983,2695.9,2695.8,3.70939]
[1727496483367,0.756,2696.3,2695.9,3.70933]
[1727496483536,0.756,2696.3,2695.7,3.70951]
[1727496483537,4.46481,2696.3,2695.7,4.49333483]
[1727496483736,0.756,2696.3,2695.8,3.70942]
[1727496484764,0.756,2696.3,2695.7,3.70951]
[1727496484940,0.756,2696.3,2695.9,3.7093]
[1727496487384,0.756,2696.3,2696.1,3.70905]
[1727496489556,0.756,2696.3,2695.9,3.7093]
[1727496489771,0.756,2696.3,2695.9,7.4186]
[1727496489948,0.756,2696.3,2696.0,3.70912]
[1727496490773,4.09464424,2696.5,2696.3,3.70868]
[1727496490774,0.38606424,2696.5,2696.3,3.70868]
[1727496491078,0.8289,2696.7,2696.1,4.51705]
[1727496491278,0.05995899,2696.4,2696.2,3.70883]
[1727496491495,0.8289,2696.7,2696.2,3.70883]
[1727496491662,0.05985582,2696.3,2696.2,3.70883]
[1727496491982,0.8289,2696.7,2696.2,3.70883]
[1727496492155,0.05989915,2696.3,2696.2,3.70883]
[1727496492354,0.8289,2696.7,2696.3,3.70878]
[1727496492885,0.38604913,2696.8,2696.5,3.7085]
[1727496493086,0.38789518,2697.1,2696.7,3.70823]
[1727496493288,0.8289,2697.2,2696.8,3.70803]
[1727496493668,0.8289,2697.2,2696.9,3.70793]
[1727496495381,0.8289,2697.2,2696.7,7.41638]
[1727496495853,0.8289,2697.2,2696.7,3.70815]
[1727496496191,0.8289,2697.2,2696.9,3.70795]
[1727496497172,0.8289,2697.2,2696.7,3.70815]
[1727496497584,0.8289,2697.2,2696.8,3.70806]
[1727496498158,0.8289,2697.2,2696.7,3.70815]
[1727496499163,0.8289,2697.2,2696.8,3.708]
[1727496499363,0.8289,2697.2,2696.7,3.70815]
[1727496499364,0.8289,2697.2,2696.7,7.41629]
[1727496499585,0.8289,2697.2,2696.8,3.70806]
[1727496500278,0.8289,2697.2,2696.7,3.70814]
[1727496501865,0.8289,2697.2,2696.8,3.70809]
[1727496502805,0.8289,2697.2,2696.8,3.70808]
[1727496505103,0.8289,2697.2,2696.6,3.70825]
[1727496505277,0.8289,2697.2,2696.7,3.70822]
[1727496506868,0.8289,2697.2,2696.7,7.41637]
[1727496507100,0.8289,2697.2,2696.7,3.70815]
[1727496508003,0.8289,2697.2,2696.8,3.70809]
[1727496508178,0.8289,2697.2,2696.7,3.70815]
[1727496508383,1.60635925,2697.2,2696.7,3.70815]
[1727496509913,0.77745925,2697.1,2696.7,3.70815]
[1727496510215,1.60635925,2697.2,2696.7,3.70815]
[1727496510370,0.77745925,2697.1,2696.7,3.70815]
[1727496511008,0.77745925,2697.1,2696.8,3.70806]
[1727496511208,0.77745925,2697.1,2696.7,4.58318907]
[1727496511392,0.77745925,2697.1,2696.7,3.70815]
[1727496511580,0.77745925,2697.0,2696.7,3.70815]
[1727496512108,0.77745925,2697.1,2696.7,3.70815]
[1727496512303,0.77745925,2697.0,2696.7,3.70815]
[1727496513406,0.77745925,2697.0,2696.5,5.04219065]
[1727496513407,1.55165925,2696.9,2696.5,5.04219065]
[1727496513576,1.55165925,2696.9,2696.5,4.51651]
[1727496513775,1.55165925,2696.9,2696.6,3.70833]
[1727496515190,0.77745925,2696.8,2696.6,3.70833]
[1727496515873,0.77745925,2696.8,2696.5,7.41681]
[1727496516082,1.20517124,2696.8,2695.6,0.7772]
[1727496516277,0.77745925,2696.5,2696.0,4.48632]
[1727496516486,0.751,2696.3,2695.8,4.48661]
[1727496516815,0.77745925,2696.1,2695.8,3.70937]
[1727496516989,0.06063239,2696.0,2695.9,3.70922]
[1727496517795,0.06054176,2696.0,2695.9,3.70922]
[1727496518121,0.77745925,2696.2,2695.9,3.70922]
[1727496518284,0.06054176,2696.0,2695.4,3.70996]
[1727496518630,0.77745925,2695.8,2695.4,3.70996]
[1727496518987,0.77745925,2695.8,2695.4,7.41986]
[1727496519187,0.05971419,2695.7,2695.4,7.41986]
[1727496519425,0.77745925,2695.8,2695.5,3.70985]
[1727496519730,0.05971419,2695.7,2695.5,3.70985]
[1727496520030,0.77745925,2695.8,2695.5,3.70985]
[1727496520335,0.77745925,2695.8,2695.3,3.71012]
[1727496520336,0.05969523,2695.6,2695.3,3.71012]
[1727496521526,0.77745925,2695.8,2695.3,3.71012]
[1727496521686,0.05920935,2695.5,2695.3,3.71012]
[1727496521884,0.77745925,2695.8,2695.3,3.71012]
[1727496522086,0.05909195,2695.4,2695.3,3.71012]
[1727496522334,0.77745925,2695.8,2695.3,3.71012]
[1727496522489,0.81022467,2695.4,2695.1,3.7103]
[1727496522689,0.751,2695.4,2695.1,3.7103]
[1727496522913,0.05919783,2695.3,2695.1,3.7103]
[1727496523498,0.05919783,2695.3,2694.9,3.71065]
[1727496523704,0.05919783,2695.3,2695.0,3.71052]
[1727496524090,0.05919783,2695.3,2694.9,3.71065]
[1727496524293,0.51121761,2695.3,2695.0,3.71056]
[1727496524625,0.51121761,2695.3,2694.9,3.71065]
[1727496524626,0.05919783,2695.3,2694.9,3.71065]
[1727496525606,0.05919783,2695.3,2694.7,3.71094]
[1727496525816,0.77745925,2695.1,2694.5,3.71113]
[1727496526020,5.33174931,2695.2,2694.6,3.71101]
[1727496526218,0.05868641,2695.0,2694.6,3.71101]
[1727496526529,0.05849882,2694.9,2694.5,3.71113]
[1727496527044,0.05838121,2694.8,2694.5,3.71113]
[1727496527222,0.70575285,2695.1,2694.5,3.71113]
[1727496527404,0.05867207,2695.0,2694.5,3.71113]
[1727496527939,0.7939,2694.9,2694.5,3.71113]
[1727496528332,0.05846555,2694.8,2694.5,3.71113]
[1727496528905,0.05846555,2694.8,2694.1,4.57828408]
[1727496529108,0.05846555,2694.8,2694.1,0.762]
[1727496529109,0.51978311,2694.8,2694.1,0.762]
[1727496529307,0.05846555,2694.8,2694.3,3.71142]
[1727496529535,0.05846555,2694.8,2694.3,7.42287]
[1727496529933,0.05846555,2694.8,2694.3,3.71142]
[1727496531120,0.765,2694.6,2694.1,3.71174]
[1727496531520,0.05744527,2694.5,2694.1,3.7117]
[1727496531724,0.05744527,2694.5,2694.3,3.71152]
[1727496531962,0.765,2694.6,2694.4,3.71138]
[1727496532250,0.05722641,2694.5,2694.3,3.71152]
[1727496532408,0.765,2694.6,2694.3,7.42294]
[1727496532607,0.765,2694.6,2694.0,100.0]
[1727496532608,0.765,2694.6,2694.1,3.71174]
[1727496532848,0.765,2694.6,2694.0,100.0]
[1727496533049,4.52620006,2694.6,2694.0,103.71187]
[1727496533249,0.05710186,2694.5,2694.0,103.71187]
[1727496533449,4.52620006,2694.6,2694.0,103.71187]
[1727496534516,0.81500006,2694.6,2694.1,3.71178]
[1727496534937,0.05710186,2694.5,2694.1,3.71178]
[1727496535554,3.71136,2694.5,2694.0,100.0]
[1727496535716,1.21763601,2694.4,2694.0,100.0]
[1727496535919,0.765,2694.4,2694.0,100.0]
[1727496536251,0.765,2694.2,2694.0,100.0]
[1727496537560,1.15138823,2694.4,2694.0,100.0]
[1727496537920,0.05706254,2694.3,2694.1,3.71177]
[1727496538351,0.05706254,2694.3,2694.1,7.42349]
[1727496538517,0.05706254,2694.3,2694.1,3.71172]
[1727496538951,1.15138823,2694.4,2694.1,3.71172]
[1727496539374,0.05698613,2694.3,2694.2,3.71167]
[1727496539578,0.05698613,2694.3,2694.1,3.71179]
[1727496539779,0.765,2694.6,2694.1,3.71179]
[1727496539970,0.765,2694.3,2694.0,100.0]
[1727496540494,0.0569012,2694.2,2694.0,100.0]
[1727496540661,0.765,2694.3,2694.0,100.0]
[1727496540848,0.05679789,2694.1,2694.0,100.0]
[1727496541051,0.765,2694.3,2694.0,100.0]
[1727496541294,0.05679789,2694.1,2694.0,100.0]
[1727496541493,0.765,2694.3,2694.0,100.0]
[1727496541702,0.765,2694.1,2694.0,100.0]
[1727496542749,4.52681006,2694.1,2694.0,100.0]
[1727496542953,5.02681,2694.1,2694.0,100.0]
[1727496543254,1.315,2694.1,2694.0,100.0]
[1727496543562,2.19383301,2694.1,2694.0,100.0]
[1727496545497,1.64383301,2694.1,2694.0,100.0]
[1727496545651,0.765,2694.1,2694.0,100.0]
[1727496546190,0.05000006,2694.4,2694.0,100.0]
[1727496546191,0.815,2694.5,2694.1,3.7118]
[1727496546596,0.05616149,2694.4,2694.1,3.7118]
[1727496546809,0.815,2694.5,2694.1,3.7118]
[1727496546810,0.815,2694.5,2694.1,7.52808408]
[1727496547111,0.815,2694.7,2694.3,3.71144]
[1727496547404,0.815,2694.7,2694.3,8.54682041]
[1727496547571,0.815,2694.7,2694.4,3.7113]
[1727496547775,0.38636458,2694.8,2694.4,3.7113]
[1727496549203,0.05000006,2694.7,2694.1,7.52796408]
[1727496549399,0.05000006,2694.7,2694.2,3.71166]
[1727496549908,0.05676175,2694.6,2694.3,3.7115]
[1727496550120,0.38636458,2694.8,2694.4,3.71129]
[1727496550281,0.05686504,2694.7,2694.4,3.71129]
[1727496550464,0.38636458,2694.8,2694.3,7.42295]
[1727496550664,0.05686504,2694.7,2694.3,7.42295]
[1727496550896,0.38636458,2694.8,2694.3,7.42295]
[1727496551102,0.05686504,2694.7,2694.3,3.71145]
[1727496551286,0.38636458,2694.8,2694.3,3.71144]
[1727496551490,0.05728508,2694.7,2694.3,3.71144]
[1727496551709,0.38636458,2694.8,2694.3,3.71144]
[1727496551906,0.05728508,2694.7,2694.3,3.71144]
[1727496552221,0.38549103,2694.8,2694.3,3.71144]
[1727496552399,0.38549103,2694.8,2694.3,4.83539041]
[1727496552606,0.05728902,2694.7,2694.3,4.83539041]
[1727496552908,0.38549103,2694.8,2694.3,4.83539041]
[1727496553092,4.14638109,2694.8,2694.1,3.81628408]
[1727496553276,4.14638109,2694.8,2694.1,7.52798408]
[1727496553601,0.05727324,2694.7,2694.1,7.52798408]
[1727496553809,0.05727324,2694.7,2694.1,11.23970408]
[1727496554005,4.14638109,2694.8,2694.2,7.06780349]
[1727496554518,0.05523342,2694.7,2694.2,3.35613349]
[1727496554705,0.05523342,2694.7,2694.2,3.71166]
[1727496554872,4.14638109,2694.8,2694.2,3.71166]
[1727496555210,0.05539418,2694.7,2694.2,3.71166]
[1727496555715,4.14638109,2694.8,2694.2,3.71166]
[1727496556014,0.05539023,2694.7,2694.3,4.453856]
[1727496556385,0.43549109,2694.8,2694.3,4.453856]
[1727496556773,0.05539418,2694.7,2694.3,4.453856]
[1727496557295,0.43549109,2694.8,2694.3,4.453856]
[1727496557470,0.05539418,2694.7,2694.4,3.71131]
[1727496557666,0.38549103,2694.8,2694.4,3.71131]
[1727496557900,0.8097,2695.1,2694.5,0.07422303]
[1727496558172,0.38801402,2695.2,2694.9,3.71071]
[1727496558474,0.8097,2695.4,2695.1,3.71043]
[1727496558870,0.8097,2695.4,2695.2,3.7102]
[1727496559089,0.8097,2695.6,2695.3,3.71015]
[1727496559415,0.8097,2695.8,2695.4,3.70999]
[1727496560115,0.8097,2695.8,2695.4,3.70992]
[1727496561199,0.05175398,2695.7,2695.4,3.70992]
[1727496561582,0.8097,2695.8,2695.4,3.70992]
[1727496561788,0.05131358,2695.6,2695.4,3.70992]
[1727496562097,0.05149437,2695.5,2695.4,3.70992]
[1727496562418,0.8097,2695.8,2695.4,3.70992]
[1727496562622,0.05149437,2695.5,2695.4,3.70992]
[1727496562785,0.8097,2695.8,2695.4,3.70992]
[1727496562981,0.05145222,2695.5,2695.4,3.70992]
[1727496563282,0.05149437,2695.5,2695.2,4.08126]
[1727496563485,4.56930006,2695.8,2695.0,7.42108]
[1727496563726,3.76165372,2695.7,2695.0,3.71054]
[1727496563887,4.30153502,2695.7,2695.1,3.71043]
[1727496565014,4.51953,2695.6,2695.0,3.71053]
[1727496565199,0.95985243,2695.5,2695.0,3.71053]
[1727496565393,1.01176832,2695.5,2695.0,3.71053]
[1727496566115,1.01176832,2695.5,2695.1,3.71043]
[1727496566729,0.05191589,2695.5,2695.1,8.17547]
[1727496566930,0.05191589,2695.5,2695.2,3.71027]
[1727496568004,0.05191589,2695.5,2694.8,3.35630484]
[1727496568005,0.05191589,2695.5,2695.0,3.71048]
[1727496568204,0.26981153,2695.5,2695.1,3.71034]
[1727496568519,0.05191589,2695.5,2695.1,3.71034]
[1727496569148,0.05191589,2695.5,2694.9,3.71061]
[1727496569149,0.05000006,2695.4,2694.9,3.71061]
[1727496569324,0.10202972,2695.4,2694.9,3.71061]
[1727496569504,0.10202972,2695.4,2695.0,3.71055]
[1727496569837,0.05202966,2695.4,2695.0,3.71055]
[1727496570043,0.64192362,2695.4,2695.0,3.71055]
[1727496570335,0.7684,2695.3,2694.7,3.71091]